bitfinex/quotes_BTCUSD_20220101
["timestamp","ask_amount","ask_price","bid_price","bid_amount"]
[1640995790455,1.88151111,46362.0,46361.0,0.002]
[1640995791460,1.9557868,46362.0,46361.0,0.002]
[1640995791656,1.93736705,46362.0,46361.0,0.002]
[1640995792056,0.41192169,46362.0,46361.0,0.002]
[1640995792314,0.07427569,46362.0,46361.0,0.002]
[1640995792510,0.09468621,46362.0,46361.0,0.002]
[1640995792709,0.07436452,46362.0,46361.0,0.002]
[1640995793711,0.053954,46362.0,46361.0,0.002]
[1640995795315,0.02175527,46368.0,46361.0,0.311063]
[1640995795514,0.02175527,46368.0,46367.0,1.25776]
[1640995795515,0.0400218,46368.0,46367.0,1.25776]
[1640995795715,0.0400218,46368.0,46367.0,1.566775]
[1640995795716,0.01826653,46368.0,46367.0,1.566775]
[1640995796153,0.01826653,46368.0,46367.0,0.396775]
[1640995796554,0.30845737,46375.0,46367.0,0.396775]
[1640995796757,0.01002902,46374.0,46367.0,0.08776]
[1640995797354,0.01002902,46374.0,46373.0,0.08776]
[1640995798253,0.02022785,46375.0,46373.0,0.08776]
[1640995798654,0.053926,46374.0,46373.0,0.08776]
[1640995798854,0.107852,46376.0,46373.0,0.08776]
[1640995799054,0.102852,46376.0,46373.0,0.08776]
[1640995800314,0.053926,46374.0,46373.0,0.08776]
[1640995800914,0.391572,46374.0,46373.0,0.08776]
[1640995801114,0.88234272,46374.0,46373.0,0.08776]
[1640995801315,2.02434272,46374.0,46373.0,0.08776]
[1640995801528,2.02434272,46374.0,46364.0,0.00126023]
[1640995801529,2.02434272,46374.0,46369.0,0.08776]
[1640995801715,0.0432,46373.0,46369.0,0.08776]
[1640995802018,0.0432,46373.0,46364.0,0.08776]
[1640995802019,1.46505597,46367.0,46364.0,0.08776]
[1640995802213,0.24417135,46362.0,46361.0,0.002]
[1640995802413,0.24417135,46362.0,46361.0,0.08976]
[1640995802615,0.64069675,46362.0,46361.0,0.08976]
[1640995802828,0.64069675,46362.0,46356.0,0.11833492]
[1640995802829,0.68389675,46362.0,46356.0,0.11833492]
[1640995803015,1.142,46361.0,46356.0,0.11833492]
[1640995803218,1.142,46358.0,46353.0,0.00636352]
[1640995803414,0.380846,46357.0,46353.0,0.00636352]
[1640995803664,1.142,46356.0,46353.0,0.00636352]
[1640995803865,1.1852,46356.0,46353.0,0.00636352]
[1640995804066,1.622846,46356.0,46353.0,0.00636352]
[1640995804465,1.6415194,46356.0,46353.0,0.00636352]
[1640995804864,1.6954784,46356.0,46353.0,0.00318182]
[1640995805365,1.47429812,46354.0,46353.0,0.00318182]
[1640995805566,0.337646,46354.0,46353.0,0.00318182]
[1640995805768,0.16194742,46356.0,46353.0,0.00318182]
[1640995805967,0.337646,46355.0,46353.0,0.00318182]
[1640995806167,0.380846,46355.0,46353.0,0.00318182]
[1640995806368,0.053964,46354.0,46353.0,0.00318182]
[1640995807608,0.052964,46354.0,46353.0,0.78318182]
[1640995807909,0.33513517,46360.0,46353.0,0.31230782]
[1640995807910,0.053943,46356.0,46353.0,0.31230782]
[1640995808106,0.053943,46356.0,46353.0,0.00318182]
[1640995808510,0.01829338,46360.0,46355.0,0.08776]
[1640995808708,0.01002928,46362.0,46355.0,0.08776]
[1640995809309,0.053938,46360.0,46355.0,0.08776]
[1640995809511,0.053938,46360.0,46359.0,0.08776]
[1640995810116,0.053938,46360.0,46359.0,0.08276]
[1640995810415,0.02003465,46367.0,46360.0,0.09493619]
[1640995810612,0.02003465,46367.0,46356.0,0.00120297]
[1640995810613,0.01002919,46366.0,46356.0,0.00120297]
[1640995810812,0.01002919,46366.0,46365.0,0.44276]
[1640995811046,0.01002919,46366.0,46365.0,0.08276]
[1640995811448,0.35566996,46370.0,46365.0,0.08276]
[1640995811651,0.05393,46367.0,46365.0,0.08276]
[1640995812349,0.05393,46367.0,46365.0,0.07776]
[1640995814548,0.337646,46366.0,46365.0,0.07776]
[1640995814820,0.445523,46366.0,46365.0,0.07276]
[1640995815719,0.4655644,46366.0,46365.0,0.07276]
[1640995816017,0.84305653,46366.0,46365.0,0.07276]
[1640995816618,0.8621523,46366.0,46365.0,0.07276]
[1640995816818,0.8421109,46366.0,46365.0,0.07276]
[1640995817818,0.84159234,46366.0,46365.0,0.07276]
[1640995818218,0.85999432,46366.0,46365.0,0.07276]
[1640995818418,0.84089855,46366.0,46365.0,0.07276]
[1640995818661,0.86276236,46366.0,46365.0,0.07276]
[1640995818859,0.84436038,46366.0,46365.0,0.07276]
[1640995819261,0.50723294,46366.0,46365.0,0.07276]
[1640995819462,0.12974081,46366.0,46365.0,0.07276]
[1640995819663,0.15033581,46366.0,46365.0,0.07276]
[1640995819865,0.020595,46366.0,46365.0,0.07276]
[1640995820062,0.61202862,46369.0,46365.0,0.34701]
[1640995820265,0.29682862,46369.0,46368.0,0.0739961]
[1640995820461,0.29682862,46369.0,46368.0,0.1239961]
[1640995820663,0.29682862,46369.0,46368.0,0.0739961]
[1640995821267,1.13362299,46373.0,46368.0,0.0739961]
[1640995821463,0.053926,46373.0,46372.0,0.07276]
[1640995821662,0.053926,46373.0,46372.0,0.11756]
[1640995822305,0.053926,46373.0,46372.0,0.07276]
[1640995823201,0.34884564,46373.0,46372.0,0.07276]
[1640995823401,0.34384564,46373.0,46372.0,0.07276]
[1640995823800,0.048926,46373.0,46372.0,0.07276]
[1640995824002,0.73444499,46377.0,46373.0,1.50614528]
[1640995824308,0.73354499,46377.0,46376.0,1.33405895]
[1640995824502,0.85680249,46379.0,46376.0,1.43405895]
[1640995824703,0.01049065,46380.0,46378.0,0.00125602]
[1640995824704,0.01029065,46380.0,46378.0,0.00125602]
[1640995825202,0.06529065,46380.0,46379.0,0.07276]
[1640995825801,0.11920565,46380.0,46379.0,0.07276]
[1640995826251,0.109215,46380.0,46379.0,0.07276]
[1640995826852,0.109215,46380.0,46379.0,0.07396888]
[1640995833011,0.446909,46380.0,46379.0,0.07396888]
[1640995834154,0.109215,46380.0,46379.0,0.07396888]
[1640995840607,0.0553,46380.0,46379.0,0.07396888]
[1640995840808,0.0303,46380.0,46379.0,0.07396888]
[1640995856064,0.0002,46380.0,46379.0,0.07396888]
[1640995856262,0.0004,46384.0,46380.0,0.33]
[1640995856263,0.85698981,46384.0,46380.0,0.33]
[1640995856464,0.85698981,46384.0,46379.0,0.07396888]
[1640995856666,0.91089981,46384.0,46383.0,0.07276]
[1640995856864,0.05391,46384.0,46383.0,0.07276]
[1640995858663,0.91089981,46384.0,46383.0,0.07276]
[1640995858864,0.391604,46384.0,46383.0,0.07276]
[1640995859064,0.45289437,46384.0,46383.0,0.07276]
[1640995861819,0.11520037,46384.0,46383.0,0.07276]
[1640995862016,2.11235704,46384.0,46383.0,0.07276]
[1640995862617,2.45005104,46384.0,46383.0,0.07276]
[1640995863671,2.45005104,46384.0,46379.0,0.00120888]
[1640995863874,0.053927,46382.0,46380.0,0.07276]
[1640995864170,1.037694,46381.0,46380.0,0.07276]
[1640995864572,1.02264779,46381.0,46380.0,0.07276]
[1640995864772,1.08393816,46381.0,46380.0,0.07276]
[1640995867078,0.67370478,46381.0,46380.0,0.07276]
[1640995867517,0.39898437,46381.0,46380.0,0.07276]
[1640995867918,0.06129037,46381.0,46380.0,0.07276]
[1640995868919,2.35210907,46381.0,46380.0,0.07276]
[1640995869320,0.06129037,46381.0,46380.0,0.07276]
[1640995870021,0.053927,46382.0,46380.0,0.07276]
[1640995870619,0.053927,46382.0,46381.0,0.0448]
[1640995872366,0.11521942,46382.0,46381.0,0.0448]
[1640995873070,0.11521942,46382.0,46381.0,0.04611113]
[1640995873274,0.32997929,46373.0,46366.0,0.71825787]
[1640995873477,0.05635943,46368.0,46366.0,0.71825787]
[1640995873676,0.0432,46367.0,46364.0,0.59908007]
[1640995873871,0.00126539,46365.0,46364.0,0.59908007]
[1640995874069,1.21446539,46365.0,46364.0,0.59908007]
[1640995874268,3.29829893,46365.0,46364.0,0.59908007]
[1640995874470,3.73599293,46365.0,46357.0,0.16756607]
[1640995874673,0.00124666,46362.0,46357.0,0.16756607]
[1640995874918,2.71034066,46362.0,46357.0,0.16756607]
[1640995875118,2.81034066,46362.0,46357.0,0.16756607]
[1640995875316,1.142,46361.0,46357.0,0.16756607]
[1640995875518,0.380894,46360.0,46357.0,0.00011]
[1640995875721,0.337694,46358.0,46357.0,0.00011]
[1640995876018,1.03571869,46358.0,46353.0,0.00011]
[1640995876219,1.13571869,46358.0,46353.0,0.00011]
[1640995876420,0.0012398,46356.0,46353.0,0.00011]
[1640995876618,0.380894,46355.0,46353.0,0.00011]
[1640995876819,0.43608835,46355.0,46353.0,0.00011]
[1640995877020,1.479694,46354.0,46353.0,0.00011]
[1640995877223,0.2087948,46353.0,46349.0,0.00011]
[1640995877424,0.337694,46350.0,46345.0,0.00011]
[1640995877618,0.38443488,46349.0,46345.0,0.00011]
[1640995877820,1.56963488,46349.0,46345.0,0.00011]
[1640995878121,1.93244011,46349.0,46345.0,0.00011]
[1640995878565,1.507694,46347.0,46345.0,0.00011]
[1640995878865,1.507694,46347.0,46341.0,0.00211]
[1640995878866,0.337694,46345.0,46341.0,0.00211]
[1640995879067,0.337694,46343.0,46341.0,0.00211]
[1640995879264,1.84758296,46343.0,46341.0,0.00211]
[1640995879466,1.142,46341.0,46339.0,0.00011]
[1640995879666,1.87632936,46340.0,46339.0,0.00011]
[1640995879870,1.87632936,46340.0,46326.0,0.00011]
[1640995879871,0.33309186,46332.0,46327.0,0.19306231]
[1640995880066,0.43309186,46332.0,46327.0,0.19306231]
[1640995880266,0.053982,46330.0,46327.0,0.19306231]
[1640995881069,0.337694,46329.0,46327.0,0.19306231]
[1640995882329,0.30254281,46328.0,46327.0,0.19306231]
[1640995882520,0.64023681,46328.0,46327.0,0.19306231]
[1640995882918,1.15402373,46328.0,46327.0,0.19306231]
[1640995883619,0.74023681,46328.0,46327.0,0.19306231]
[1640995884220,0.437694,46328.0,46327.0,0.19427255]
[1640995884618,0.053982,46330.0,46327.0,0.19427255]
[1640995884817,0.097182,46330.0,46327.0,0.19427255]
[1640995885022,0.053982,46330.0,46327.0,0.19427255]
[1640995885219,1.05876682,46347.0,46327.0,0.19427255]
[1640995885220,0.0432,46341.0,46327.0,0.19427255]
[1640995885419,0.61256769,46344.0,46327.0,0.19427255]
[1640995885619,0.23657953,46330.0,46327.0,0.44752342]
[1640995885821,0.95448856,46329.0,46327.0,0.19427255]
[1640995886070,0.04448856,46329.0,46327.0,0.19427255]
[1640995886270,0.09846956,46329.0,46327.0,0.19427255]
[1640995886468,0.053981,46329.0,46327.0,0.19427255]
[1640995886666,0.053981,46329.0,46328.0,0.0448]
[1640995886869,1.69567965,46337.0,46328.0,0.5948]
[1640995887068,0.61255923,46345.0,46328.0,0.65]
[1640995887267,0.00125946,46345.0,46329.0,0.14585012]
[1640995887467,0.00125946,46345.0,46331.0,0.10284929]
[1640995887770,0.00992198,46347.0,46334.0,0.09979577]
[1640995887967,0.24011273,46340.0,46334.0,0.00121546]
[1640995889366,0.0433,46354.0,46334.0,0.00121546]
[1640995889566,0.107933,46342.0,46335.0,0.00120999]
[1640995890610,0.00121001,46339.0,46335.0,0.00120999]
[1640995890814,0.391668,46338.0,46335.0,0.00120999]
[1640995891010,0.00125378,46336.0,46335.0,0.00120999]
[1640995891209,0.66128784,46336.0,46335.0,0.00120999]
[1640995891413,1.26128784,46336.0,46335.0,0.00120999]
[1640995891610,2.28341421,46336.0,46335.0,0.00120999]
[1640995891910,2.33739721,46336.0,46335.0,0.00120999]
[1640995893763,3.00381847,46336.0,46335.0,0.00120999]
[1640995894165,3.00381847,46336.0,46333.0,0.00373484]
[1640995894166,1.17,46335.0,46333.0,0.00373484]
[1640995894365,2.800865,46334.0,46333.0,0.00373484]
[1640995894564,2.900865,46334.0,46330.0,0.00370797]
[1640995894764,0.00126858,46331.0,46330.0,0.00370797]
[1640995894963,1.50896258,46331.0,46327.0,0.19306231]
[1640995895163,1.142,46330.0,46327.0,0.19306231]
[1640995895363,0.70643796,46328.0,46327.0,0.19306231]
[1640995895566,2.28613196,46328.0,46327.0,0.19306231]
[1640995896565,0.77075349,46328.0,46327.0,0.19306231]
[1640995896969,0.77075349,46328.0,46321.0,0.00046547]
[1640995896970,0.00123966,46322.0,46321.0,0.00046547]
[1640995897168,1.82595856,46322.0,46321.0,0.00046547]
[1640995897412,2.241132,46322.0,46321.0,0.00046547]
[1640995897612,1.17129038,46321.0,46319.0,0.00011]
[1640995897918,1.522894,46320.0,46319.0,0.00011]
[1640995898114,1.622894,46320.0,46319.0,0.00011]
[1640995899111,1.507694,46318.0,46311.0,0.002]
[1640995899311,0.054009,46314.0,46311.0,0.002]
[1640995899516,1.89631137,46312.0,46311.0,0.002]
[1640995899715,1.06400537,46312.0,46311.0,0.002]
[1640995899911,1.16400537,46312.0,46311.0,0.002]
[1640995900114,1.16400537,46312.0,46298.0,0.00022]
[1640995900115,0.23517295,46302.0,46292.0,0.55210315]
[1640995900315,0.23517295,46302.0,46293.0,0.3101]
[1640995900516,1.17,46311.0,46293.0,0.2101]
[1640995900718,1.27,46311.0,46292.0,0.00140315]
[1640995901564,0.26352744,46303.0,46292.0,0.00140315]
[1640995901766,0.26352744,46303.0,46293.0,0.210095]
[1640995901964,0.31753744,46303.0,46292.0,0.00140315]
[1640995902564,0.31753744,46303.0,46296.0,0.00335129]
[1640995902765,0.30718675,46302.0,46296.0,0.00335129]
[1640995902966,0.054022,46299.0,46296.0,0.00335129]
[1640995903164,0.054022,46299.0,46297.0,9.828e-05]
[1640995903165,0.337797,46298.0,46297.0,9.828e-05]
[1640995903567,0.054022,46299.0,46297.0,9.828e-05]
[1640995905816,0.8295,46315.0,46297.0,9.828e-05]
[1640995906116,0.00124098,46314.0,46297.0,9.828e-05]
[1640995906515,0.00129503,46307.0,46297.0,9.828e-05]
[1640995906918,0.00129503,46307.0,46298.0,0.210071]
[1640995907216,0.00129503,46307.0,46297.0,9.828e-05]
[1640995907414,0.054011,46302.0,46300.0,0.00315902]
[1640995908117,0.00129503,46307.0,46300.0,0.00315902]
[1640995908118,0.00129503,46307.0,46300.0,0.10315901]
[1640995908317,0.108014,46329.0,46300.0,0.10315901]
[1640995908318,0.053994,46315.0,46304.0,0.09999999]
[1640995908572,0.28888127,46321.0,46306.0,0.10164927]
[1640995908773,0.28888127,46321.0,46307.0,0.14331703]
[1640995908969,0.28888127,46321.0,46308.0,0.0432]
[1640995909169,0.28888127,46321.0,46309.0,0.26924476]
[1640995909370,0.28888127,46321.0,46311.0,0.09657724]
[1640995909570,0.28888127,46321.0,46312.0,0.0432]
[1640995910272,0.107982,46323.0,46316.0,0.28704709]
[1640995910472,0.107971,46327.0,46317.0,0.55445406]
[1640995910872,1.14325883,46330.0,46317.0,0.34448606]
[1640995911072,1.479797,46329.0,46317.0,0.34448606]
[1640995911275,0.28662534,46326.0,46315.0,0.00126891]
[1640995911471,0.053988,46321.0,46315.0,0.00126891]
[1640995911673,0.053988,46321.0,46315.0,0.29838588]
[1640995912322,0.053988,46321.0,46312.0,0.04446739]
[1640995912916,0.053984,46323.0,46314.0,0.09716503]
[1640995913116,0.24501359,46319.0,46312.0,0.00126739]
[1640995913922,0.107985,46321.0,46317.0,0.0448]
[1640995914218,0.391788,46320.0,46313.0,8.471e-05]
[1640995914418,0.053991,46320.0,46313.0,8.471e-05]
[1640995915019,0.29468567,46320.0,46313.0,8.471e-05]
[1640995919567,0.053991,46320.0,46313.0,8.471e-05]
[1640995921810,0.337797,46319.0,46313.0,8.471e-05]
[1640995922011,0.053995,46316.0,46313.0,8.471e-05]
[1640995923012,0.337797,46315.0,46313.0,8.471e-05]
[1640995923213,2.74059215,46314.0,46313.0,4.71e-06]
[1640995923413,2.74059215,46314.0,46307.0,8.471e-05]
[1640995923414,0.00120097,46308.0,46307.0,8.471e-05]
[1640995924472,0.2976555,46308.0,46307.0,8.471e-05]
[1640995924670,0.6354525,46308.0,46307.0,8.471e-05]
[1640995925470,1.8774525,46308.0,46307.0,8.471e-05]
[1640995925671,1.7774525,46308.0,46307.0,8.471e-05]
[1640995925869,1.7774525,46308.0,46301.0,0.00317273]
[1640995926072,1.142,46306.0,46301.0,0.00317273]
[1640995926271,0.445822,46305.0,46301.0,0.00317273]
[1640995927416,0.054013,46304.0,46301.0,0.00317273]
[1640995927615,0.054013,46304.0,46301.0,0.0063464]
[1640995929817,0.00124907,46302.0,46301.0,0.0063464]
[1640995930017,0.00124907,46302.0,46301.0,0.00317367]
[1640995930220,2.65104607,46302.0,46301.0,0.00317367]
[1640995930417,3.1052055,46302.0,46301.0,0.00317367]
[1640995931263,3.1052055,46302.0,46292.0,0.00022]
[1640995931463,0.054028,46297.0,46292.0,0.00022]
[1640995931664,0.16208183,46298.0,46292.0,0.00022]
[1640995931665,0.33900774,46296.0,46292.0,0.00022]
[1640995932264,1.4599838,46295.0,46292.0,0.00022]
[1640995932463,0.337797,46294.0,46292.0,0.00022]
[1640995932665,1.479797,46294.0,46292.0,0.00022]
[1640995933664,1.17,46293.0,46286.0,0.01947]
[1640995933864,0.337797,46292.0,46286.0,0.01947]
[1640995934065,0.29749557,46287.0,46286.0,0.01947]
[1640995934266,0.35152557,46287.0,46286.0,0.01947]
[1640995936012,0.68932257,46287.0,46286.0,0.01947]
[1640995936412,1.83132257,46287.0,46286.0,0.01947]
[1640995937014,1.83132257,46287.0,46286.0,0.01962784]
[1640995937812,1.93652257,46287.0,46286.0,0.01962784]
[1640995938665,2.03652257,46287.0,46286.0,0.01962784]
[1640995939267,0.89452257,46287.0,46286.0,0.01962784]
[1640995939466,0.79452257,46287.0,46286.0,0.01962784]
[1640995940265,1.93652257,46287.0,46286.0,0.01962784]
[1640995940464,2.03652257,46287.0,46286.0,0.01962784]
[1640995941467,1.93132257,46287.0,46286.0,0.01962784]
[1640995941664,0.78932257,46287.0,46286.0,0.01962784]
[1640995942325,0.73932257,46287.0,46286.0,0.01962784]
[1640995942915,0.63932257,46287.0,46286.0,0.01962784]
[1640995944818,1.78132257,46287.0,46286.0,0.01962784]
[1640995945023,1.88132257,46287.0,46286.0,0.01962784]
[1640995945219,0.73932257,46287.0,46286.0,0.01962784]
[1640995945418,1.88132257,46287.0,46286.0,0.01962784]
[1640995946071,0.63932257,46287.0,46286.0,0.01962784]
[1640995947075,0.73932257,46287.0,46286.0,0.01962784]
[1640995948379,0.63932257,46287.0,46286.0,0.01962784]
[1640995949827,0.63732257,46287.0,46286.0,0.01962784]
[1640995950017,0.054024,46290.0,46286.0,0.01962784]
[1640995950224,0.73281348,46300.0,46287.0,0.0432]
[1640995950418,0.73281348,46300.0,46288.0,0.32447046]
[1640995950618,0.73281348,46300.0,46289.0,0.0432]
[1640995950817,0.0012922,46301.0,46289.0,0.0432]
[1640995951021,0.28367457,46293.0,46290.0,0.52598887]
[1640995951223,0.28367457,46293.0,46290.0,0.210127]
[1640995951619,0.28367457,46293.0,46289.0,0.35753537]
[1640995951819,0.00994101,46293.0,46289.0,0.35753537]
[1640995952019,0.00994101,46293.0,46289.0,0.45753537]
[1640995952219,0.0012922,46301.0,46290.0,0.210121]
[1640995952421,0.054015,46297.0,46289.0,0.45753537]
[1640995953328,0.45397299,46296.0,46289.0,0.0432]
[1640995953565,0.054021,46293.0,46289.0,0.31354435]
[1640995953766,0.054021,46293.0,46286.0,0.01962784]
[1640995954269,0.049021,46293.0,46286.0,0.01962784]
[1640995954669,0.049021,46293.0,46287.0,0.32131413]
[1640995955471,0.049021,46293.0,46286.0,0.01962784]
[1640995955670,0.2441481,46292.0,46286.0,0.01962784]
[1640995955870,0.054022,46291.0,46286.0,0.01962784]
[1640995956470,2.61170695,46297.0,46286.0,0.01962784]
[1640995956871,0.054019,46293.0,46286.0,0.01962784]
[1640995957613,0.054019,46293.0,46287.0,0.210131]
[1640995957812,0.054019,46293.0,46288.0,0.30892801]
[1640995958117,0.2978,46315.0,46292.0,0.210112]
[1640995958118,0.73291348,46312.0,46292.0,0.210112]
[1640995958313,0.00129167,46310.0,46297.0,0.00125406]
[1640995958513,0.00129167,46310.0,46299.0,0.09967508]
[1640995958715,0.00129167,46310.0,46300.0,0.10043108]
[1640995958915,0.27561928,46307.0,46299.0,0.10362265]
[1640995959136,0.27561928,46307.0,46300.0,0.10424863]
[1640995959315,0.27561928,46307.0,46297.0,0.00125406]
[1640995959316,0.337797,46306.0,46297.0,0.00125406]
[1640995960118,0.30117767,46298.0,46297.0,0.00125406]
[1640995960319,0.30117767,46298.0,46295.0,0.32463742]
[1640995960518,0.30117767,46298.0,46291.0,0.10150141]
[1640995960721,0.30117767,46298.0,46292.0,0.210105]
[1640995960918,0.30117767,46298.0,46290.0,0.00122219]
[1640995961167,0.30117767,46298.0,46288.0,0.04326495]
[1640995961767,0.30117767,46298.0,46288.0,0.37176324]
[1640995962168,0.054017,46295.0,46288.0,0.42176324]
[1640995962368,0.054017,46295.0,46289.0,0.210122]
[1640995963569,0.054017,46295.0,46288.0,6.495e-05]
[1640995964171,0.3043095,46291.0,46288.0,6.495e-05]
[1640995964373,1.214022,46290.0,46288.0,6.495e-05]
[1640995964828,0.337797,46289.0,46288.0,6.495e-05]
[1640995965221,0.054022,46290.0,46288.0,6.495e-05]
[1640995965620,0.337797,46289.0,46288.0,6.495e-05]
[1640995966220,0.054022,46290.0,46288.0,6.495e-05]
[1640995968666,0.054022,46290.0,46288.0,0.00013074]
[1640995969665,0.054019,46292.0,46288.0,0.00013074]
[1640995982524,0.054028,46290.0,46288.0,0.00013074]
[1640995982825,0.337797,46289.0,46288.0,0.00013074]
[1640995984573,0.054027,46290.0,46288.0,0.00013074]
[1640995986169,0.73281348,46293.0,46288.0,0.00013074]
[1640995986369,0.054019,46292.0,46288.0,0.00013074]
[1640995986771,0.049019,46292.0,46288.0,0.00013074]
[1640995990115,0.049019,46292.0,46288.0,0.10316839]
[1640995990316,0.054017,46294.0,46288.0,0.00013074]
[1640995990517,0.74279666,46295.0,46288.0,0.00013074]
[1640995990716,0.85083966,46295.0,46288.0,0.00013074]
[1640995990918,0.74279666,46295.0,46288.0,0.00013074]
[1640995991180,0.74279666,46295.0,46289.0,0.14759269]
[1640995991783,0.00998318,46295.0,46294.0,1.2048]
[1640995991981,0.00998318,46295.0,46294.0,1.56516925]
[1640995992185,0.85494905,46299.0,46294.0,1.82647599]
[1640995992382,0.85494905,46300.0,46298.0,1.0613622]
[1640995992682,0.85494905,46300.0,46299.0,0.25327]
[1640995992880,0.85494905,46300.0,46299.0,0.0432]
[1640995993483,0.73649349,46305.0,46299.0,0.0432]
[1640995994283,0.85494905,46307.0,46305.0,0.91]
[1640995994483,0.85494905,46308.0,46306.0,1.42447291]
[1640995994854,0.67324905,46308.0,46307.0,0.210023]
[1640995995038,0.67324905,46308.0,46307.0,0.0432]
[1640995995236,0.32029937,46311.0,46307.0,0.0432]
[1640995996038,0.37429637,46311.0,46298.0,0.64990398]
[1640995996238,0.32512819,46304.0,46298.0,0.64990398]
[1640995996439,0.32512819,46304.0,46299.0,0.21006]
[1640995996642,0.054006,46312.0,46304.0,0.32512819]
[1640995996840,0.0001,46318.0,46304.0,0.32512819]
[1640995996841,0.0002,46320.0,46319.0,0.5670877]
[1640995997038,0.0002,46320.0,46319.0,0.8601117]
[1640995997239,0.0002,46320.0,46319.0,0.9033117]
[1640995997441,0.0001,46323.0,46319.0,0.9033117]
[1640995997639,0.0001,46323.0,46320.0,0.21117108]
[1640995997843,0.0001,46323.0,46320.0,0.29917108]
[1640995998681,0.0001,46323.0,46320.0,1.12546932]
[1640995998880,0.01022181,46327.0,46320.0,1.12546932]
[1640995999085,2.181e-05,46327.0,46324.0,0.209923]
[1640995999280,2.181e-05,46327.0,46326.0,1.39490467]
[1640995999481,2.181e-05,46327.0,46326.0,1.43810467]
[1640995999882,2.181e-05,46327.0,46326.0,0.26931493]
[1640996000086,2.181e-05,46327.0,46326.0,0.61922388]
[1640996000289,0.0001,46328.0,46326.0,0.61922388]
[1640996000683,0.0001,46328.0,46327.0,0.31202809]
[1640996000884,0.0001,46328.0,46327.0,0.56513309]
[1640996001083,0.0001,46328.0,46327.0,0.56637811]
[1640996001482,0.0001,46328.0,46327.0,0.61637811]
[1640996002183,0.0001,46328.0,46327.0,1.41943943]
[1640996002439,0.0001,46328.0,46327.0,1.46943943]
[1640996002837,0.0001,46328.0,46327.0,1.75633767]
[1640996003038,0.0001,46328.0,46327.0,1.77535331]
[1640996003238,0.0001,46328.0,46327.0,1.75649198]
[1640996003441,0.054049,46354.0,46332.0,1.17120257]
[1640996003643,0.0001,46354.0,46336.0,0.21109413]
[1640996003841,0.0001,46354.0,46336.0,0.68002883]
[1640996004241,0.0001,46354.0,46337.0,1.17]
[1640996004443,0.0001,46354.0,46341.0,0.209825]
[1640996004642,0.0001,46354.0,46341.0,0.59962765]
[1640996005045,0.30140574,46350.0,46341.0,0.59962765]
[1640996005246,0.31229146,46349.0,46341.0,0.253025]
[1640996005444,0.31229146,46349.0,46341.0,0.25423487]
[1640996005643,0.054062,46343.0,46341.0,0.04440987]
[1640996005846,0.054062,46343.0,46341.0,0.00120987]
[1640996006077,0.36824055,46343.0,46341.0,0.00120987]
[1640996006676,0.31427855,46343.0,46341.0,0.00120987]
[1640996007276,0.30937855,46343.0,46341.0,0.00120987]
[1640996007679,0.43263304,46349.0,46341.0,0.00120987]
[1640996007883,0.01442158,46349.0,46341.0,0.00120987]
[1640996008079,0.01442158,46349.0,46343.0,0.00124727]
[1640996008280,0.01442158,46349.0,46343.0,0.25426027]
[1640996009282,0.0001,46354.0,46348.0,0.00128321]
[1640996009284,4.293e-05,46354.0,46348.0,0.00128321]
[1640996009484,4.293e-05,46354.0,46342.0,0.56172265]
[1640996009485,4.293e-05,46354.0,46350.0,0.00122598]
[1640996010933,4.293e-05,46354.0,46351.0,0.00120959]
[1640996012038,4.293e-05,46354.0,46353.0,0.00123807]
[1640996012238,4.293e-05,46354.0,46353.0,0.04443807]
[1640996013436,4.293e-05,46354.0,46353.0,0.0432]
[1640996013674,4.293e-05,46354.0,46351.0,0.00120959]
[1640996014477,0.50194846,46353.0,46351.0,0.00120959]
[1640996014674,1.93814074,46352.0,46351.0,0.00120959]
[1640996014875,2.27593774,46352.0,46351.0,0.00120959]
[1640996015174,3.51793774,46352.0,46351.0,0.00120959]
[1640996016874,2.37593774,46352.0,46351.0,0.00120959]
[1640996019542,3.51793774,46352.0,46351.0,0.00120959]
[1640996020646,3.51793774,46352.0,46351.0,9.59e-06]
[1640996020842,3.51793774,46352.0,46337.0,0.125]
[1640996020844,3.33765246,46352.0,46337.0,0.125]
[1640996021095,0.053978,46340.0,46337.0,0.125]
[1640996021305,0.153978,46340.0,46337.0,0.125]
[1640996021794,2.754997,46338.0,46337.0,0.125]
[1640996021996,1.612997,46338.0,46337.0,0.125]
[1640996022194,2.10595576,46338.0,46337.0,0.125]
[1640996023199,3.24795576,46338.0,46337.0,0.125]
[1640996023395,1.712997,46338.0,46337.0,0.125]
[1640996023595,0.337797,46338.0,46337.0,0.125]
[1640996024196,0.053978,46340.0,46337.0,0.125]
[1640996025337,0.053978,46340.0,46337.0,0.21936898]
[1640996025534,0.053962,46342.0,46337.0,0.125]
[1640996027339,0.053959,46344.0,46337.0,0.125]
[1640996028241,0.30459853,46340.0,46337.0,0.125]
[1640996028682,0.337797,46339.0,46337.0,0.125]
[1640996029284,0.63567898,46339.0,46337.0,0.125]
[1640996029483,0.62953406,46339.0,46337.0,0.125]
[1640996029683,0.63065071,46339.0,46337.0,0.125]
[1640996029884,1.46112199,46338.0,46337.0,0.125]
[1640996030084,1.79891899,46338.0,46337.0,0.125]
[1640996030284,2.94091899,46338.0,46337.0,0.125]
[1640996030484,1.17,46337.0,46333.0,0.00694969]
[1640996030687,1.17,46334.0,46333.0,0.00694969]
[1640996030888,1.9410562,46334.0,46333.0,0.00694969]
[1640996031086,2.0894562,46334.0,46333.0,0.00694969]
[1640996031285,2.52724598,46334.0,46333.0,0.00694969]
[1640996031685,2.62724598,46334.0,46333.0,0.00694969]
[1640996033027,3.76924598,46334.0,46333.0,0.00694969]
[1640996033231,3.76924598,46334.0,46331.0,0.0069491]
[1640996033232,2.312,46332.0,46331.0,0.0069491]
[1640996033429,2.808986,46332.0,46331.0,0.0069491]
[1640996033627,2.908986,46332.0,46325.0,0.00011]
[1640996033829,0.1052,46327.0,46325.0,0.00011]
[1640996034127,0.442997,46327.0,46325.0,0.00011]
[1640996034328,0.7341448,46327.0,46325.0,0.00011]
[1640996035131,0.6289448,46327.0,46325.0,0.00011]
[1640996035528,0.337797,46327.0,46325.0,0.00011]
[1640996036587,0.053975,46330.0,46325.0,0.00011]
[1640996036983,0.053975,46330.0,46326.0,0.10242925]
[1640996037183,0.053975,46330.0,46326.0,0.00011]
[1640996037584,0.337797,46329.0,46326.0,0.00011]
[1640996037783,0.05398,46328.0,46326.0,0.00011]
[1640996037984,0.337797,46327.0,46326.0,0.00011]
[1640996038588,0.27423732,46333.0,46326.0,0.00011]